[Event "Titled Tuesday Blitz March 28 Early 2023"]
[White "Sjugirov, Sanan"]
[Black "Albornoz Cabrera, Carlos Daniel"]
[WhiteFideId "4189302"]
[BlackFideId "3518736"]
[WhiteElo "2569"]
[BlackElo "2501"]
[Result "1-0"]
[Round "09"]
[TimeControl "180+2"]
[Date "2023.03.28"]
[WhiteClock "0:00:06"]
[BlackClock "0:00:22"]

1. d4 {[%clk 0:03:00]}  Nf6 {[%clk 0:02:59]} 2. c4 {[%clk 0:03:01]}  g6 {[%clk 0:02:59]} 3. Nc3 {[%clk 0:03:01]}  Bg7 {[%clk 0:03:00]} 4. e4 {[%clk 0:03:01]}  d6 {[%clk 0:03:00]} 5. Nf3 {[%clk 0:03:02]}  Bg4 {[%clk 0:03:01]} 6. Be2 {[%clk 0:03:01]}  O-O {[%clk 0:03:01]} 7. O-O {[%clk 0:03:01]}  Nc6 {[%clk 0:02:50]} 8. d5 {[%clk 0:02:58]}  Bxf3 {[%clk 0:02:51]} 9. Bxf3 {[%clk 0:02:59]}  Na5 {[%clk 0:02:48]} 10. Be2 {[%clk 0:02:56]}  Nd7 {[%clk 0:02:37]} 11. Bd2 {[%clk 0:02:55]}  c5 {[%clk 0:02:32]} 12. Rb1 {[%clk 0:02:48]}  a6 {[%clk 0:02:26]} 13. a3 {[%clk 0:02:45]}  Rc8 {[%clk 0:02:23]} 14. Qc2 {[%clk 0:02:27]}  e6 {[%clk 0:02:22]} 15. g3 {[%clk 0:02:11]}  exd5 {[%clk 0:02:22]} 16. exd5 {[%clk 0:01:43]}  Re8 {[%clk 0:02:22]} 17. Rfe1 {[%clk 0:01:43]}  h5 {[%clk 0:02:13]} 18. h4 {[%clk 0:01:41]}  Ne5 {[%clk 0:02:10]} 19. b3 {[%clk 0:01:40]}  b6 {[%clk 0:01:58]} 20. Kg2 {[%clk 0:01:39]}  Qd7 {[%clk 0:01:50]} 21. Bg5 {[%clk 0:01:32]}  Ng4 {[%clk 0:01:46]} 22. Ne4 {[%clk 0:01:25]}  b5 {[%clk 0:01:31]} 23. Bxg4 {[%clk 0:01:18]}  hxg4 {[%clk 0:01:25]} 24. Nf6+ {[%clk 0:01:17]}  Bxf6 {[%clk 0:01:25]} 25. Bxf6 {[%clk 0:01:18]}  bxc4 {[%clk 0:01:19]} 26. bxc4 {[%clk 0:00:18]}  Qf5 {[%clk 0:01:19]} 27. Qxf5 {[%clk 0:00:11]}  gxf5 {[%clk 0:01:20]} 28. Rec1 {[%clk 0:00:09]}  Re4 {[%clk 0:01:19]} 29. Rb6 {[%clk 0:00:09]}  Nxc4 {[%clk 0:01:16]} 30. Rxa6 {[%clk 0:00:09]}  Rb8 {[%clk 0:01:10]} 31. Ra7 {[%clk 0:00:06]}  Kh7 {[%clk 0:00:58]} 32. h5 {[%clk 0:00:06]}  Rf8 {[%clk 0:00:51]} 33. a4 {[%clk 0:00:05]}  f4 {[%clk 0:00:51]} 34. gxf4 {[%clk 0:00:03]}  Rxf4 {[%clk 0:00:52]} 35. Be7 {[%clk 0:00:03]}  Re8 {[%clk 0:00:51]} 36. Bg5 {[%clk 0:00:03]}  Rd4 {[%clk 0:00:34]} 37. Rxf7+ {[%clk 0:00:04]}  Kg8 {[%clk 0:00:35]} 38. Rf6 {[%clk 0:00:03]}  Re5 {[%clk 0:00:27]} 39. Rg6+ {[%clk 0:00:03]}  Kf7 {[%clk 0:00:28]} 40. Bf6 {[%clk 0:00:04]}  Rxh5 {[%clk 0:00:26]} 41. Bxd4 {[%clk 0:00:04]}  Kxg6 {[%clk 0:00:27]} 42. Rxc4 {[%clk 0:00:04]}  cxd4 {[%clk 0:00:27]} 43. Rxd4 {[%clk 0:00:05]}  Kf5 {[%clk 0:00:24]} 44. a5 {[%clk 0:00:05]}  Rh8 {[%clk 0:00:22]} 45. a6 {[%clk 0:00:05]}  Ra8 {[%clk 0:00:23]} 46. Ra4 {[%clk 0:00:06]}  Ke5 {[%clk 0:00:23]} 47. Ra5 {[%clk 0:00:06]}  Kf4 {[%clk 0:00:22]} 48. a7 {[%clk 0:00:06]}  Ke4 {[%clk 0:00:22]} 49. Kg3 {[%clk 0:00:06]}  Kf5 {[%clk 0:00:21]} 50. Ra6 {[%clk 0:00:06]}  Ke5 {[%clk 0:00:21]} 51. Ra5 {[%clk 0:00:05]}  Kf5 {[%clk 0:00:22]} 52. Ra4 {[%clk 0:00:05]}  Ke5 {[%clk 0:00:22]} 53. Kxg4 {[%clk 0:00:05]}  Kxd5 {[%clk 0:00:23]} 54. f4 {[%clk 0:00:05]}  Kc6 {[%clk 0:00:22]} 55. f5 {[%clk 0:00:06]}  Kb5 {[%clk 0:00:23]} 56. Ra1 {[%clk 0:00:05]}  d5 {[%clk 0:00:20]} 57. f6 {[%clk 0:00:05]}  d4 {[%clk 0:00:21]} 58. f7 {[%clk 0:00:06]}  d3 {[%clk 0:00:22]} 59. Kf3 {[%clk 0:00:04]}  Kc4 {[%clk 0:00:19]} 60. Ke3 {[%clk 0:00:03]}  Kc3 {[%clk 0:00:20]} 61. f8=Q {[%clk 0:00:02]}  Rxf8 {[%clk 0:00:19]} 62. a8=Q {[%clk 0:00:03]}  Rxa8 {[%clk 0:00:18]} 63. Rxa8 {[%clk 0:00:03]}  d2 {[%clk 0:00:19]} 64. Rc8+ {[%clk 0:00:04]}  Kb2 {[%clk 0:00:19]} 65. Kxd2 {[%clk 0:00:05]}  Ka1 {[%clk 0:00:20]} 66. Rc3 {[%clk 0:00:05]}  Kb2 {[%clk 0:00:20]} 67. Kd3 {[%clk 0:00:05]}  Ka1 {[%clk 0:00:21]} 68. Kc2 {[%clk 0:00:05]}  Ka2 {[%clk 0:00:21]} 69. Rb3 {[%clk 0:00:06]}  Ka1 {[%clk 0:00:22]} 70. Ra3# {[%clk 0:00:06]} 1-0


[Site "https://www.chess.com"]

[Event "Titled Tuesday Blitz March 28 Early 2023"]
[White "Xu, Yi"]
[Black "Kamsky, Gata"]
[WhiteFideId "8605564"]
[BlackFideId "2000024"]
[WhiteElo "2471"]
[BlackElo "2666"]
[Result "1/2-1/2"]
[Round "09"]
[TimeControl "180+2"]
[Date "2023.03.28"]
[WhiteClock "0:00:33"]
[BlackClock "0:00:27"]

1. e4 {[%clk 0:03:00]}  e5 {[%clk 0:02:54]} 2. Nf3 {[%clk 0:03:01]}  Nc6 {[%clk 0:02:53]} 3. Bc4 {[%clk 0:03:01]}  Bc5 {[%clk 0:02:51]} 4. O-O {[%clk 0:03:01]}  d6 {[%clk 0:02:22]} 5. c3 {[%clk 0:02:59]}  Nf6 {[%clk 0:02:04]} 6. d3 {[%clk 0:02:59]}  h6 {[%clk 0:02:00]} 7. Nbd2 {[%clk 0:02:55]}  a5 {[%clk 0:01:58]} 8. Re1 {[%clk 0:02:52]}  O-O {[%clk 0:01:48]} 9. Nf1 {[%clk 0:02:43]}  Be6 {[%clk 0:01:07]} 10. Bb5 {[%clk 0:02:43]}  Bd7 {[%clk 0:01:02]} 11. h3 {[%clk 0:02:36]}  Ba7 {[%clk 0:00:53]} 12. Ng3 {[%clk 0:02:32]}  Ne7 {[%clk 0:00:52]} 13. Bxd7 {[%clk 0:02:28]}  Qxd7 {[%clk 0:00:51]} 14. d4 {[%clk 0:02:28]}  Ng6 {[%clk 0:00:50]} 15. Be3 {[%clk 0:01:53]}  a4 {[%clk 0:00:44]} 16. Qc2 {[%clk 0:01:51]}  Rfe8 {[%clk 0:00:44]} 17. Rad1 {[%clk 0:01:50]}  Qc6 {[%clk 0:00:43]} 18. d5 {[%clk 0:01:21]}  Qc4 {[%clk 0:00:40]} 19. b3 {[%clk 0:00:53]}  axb3 {[%clk 0:00:40]} 20. axb3 {[%clk 0:00:54]}  Qb5 {[%clk 0:00:40]} 21. c4 {[%clk 0:00:51]}  Qb4 {[%clk 0:00:29]} 22. Bd2 {[%clk 0:00:50]}  Qb6 {[%clk 0:00:27]} 23. Be3 {[%clk 0:00:46]}  Qb4 {[%clk 0:00:27]} 24. Bd2 {[%clk 0:00:33]}  Qb6 {[%clk 0:00:27]} 25. Be3 {[%clk 0:00:33]}  Qb4 {[%clk 0:00:27]} 1/2-1/2


[Site "https://www.chess.com"]

[Event "Titled Tuesday Blitz March 28 Early 2023"]
[White "Santos Ruiz, Miguel"]
[Black "Drozdowski, Kacper"]
[WhiteFideId "22291482"]
[BlackFideId "1136720"]
[WhiteElo "2504"]
[BlackElo "2497"]
[Result "0-1"]
[Round "09"]
[TimeControl "180+2"]
[Date "2023.03.28"]
[WhiteClock "0:00:05"]
[BlackClock "0:00:15"]

1. e4 {[%clk 0:03:00]}  c5 {[%clk 0:02:59]} 2. Nf3 {[%clk 0:03:00]}  e6 {[%clk 0:03:00]} 3. d4 {[%clk 0:03:00]}  cxd4 {[%clk 0:03:00]} 4. Nxd4 {[%clk 0:03:01]}  a6 {[%clk 0:03:00]} 5. c4 {[%clk 0:03:00]}  Nf6 {[%clk 0:03:00]} 6. Nc3 {[%clk 0:03:00]}  Qc7 {[%clk 0:03:00]} 7. a3 {[%clk 0:02:59]}  b6 {[%clk 0:03:00]} 8. Be3 {[%clk 0:02:58]}  Bb7 {[%clk 0:03:00]} 9. f3 {[%clk 0:02:59]}  d6 {[%clk 0:03:01]} 10. Be2 {[%clk 0:02:56]}  Nbd7 {[%clk 0:03:01]} 11. Qd2 {[%clk 0:02:56]}  Be7 {[%clk 0:03:01]} 12. O-O {[%clk 0:02:55]}  O-O {[%clk 0:03:02]} 13. b4 {[%clk 0:02:52]}  Rac8 {[%clk 0:03:00]} 14. Rfc1 {[%clk 0:02:47]}  Qb8 {[%clk 0:02:58]} 15. Qe1 {[%clk 0:02:35]}  Bd8 {[%clk 0:02:57]} 16. Kh1 {[%clk 0:02:36]}  Bc7 {[%clk 0:02:55]} 17. Qg1 {[%clk 0:02:35]}  Rfe8 {[%clk 0:02:52]} 18. Na4 {[%clk 0:02:11]}  Ne5 {[%clk 0:02:14]} 19. c5 {[%clk 0:01:56]}  dxc5 {[%clk 0:02:13]} 20. bxc5 {[%clk 0:01:56]}  b5 {[%clk 0:02:12]} 21. Nb6 {[%clk 0:01:47]}  Rcd8 {[%clk 0:01:52]} 22. a4 {[%clk 0:01:22]}  bxa4 {[%clk 0:01:46]} 23. Nxa4 {[%clk 0:01:11]}  Nc6 {[%clk 0:01:38]} 24. Rab1 {[%clk 0:00:59]}  Nxd4 {[%clk 0:01:22]} 25. Bxd4 {[%clk 0:00:59]}  Bf4 {[%clk 0:01:23]} 26. Rd1 {[%clk 0:00:51]}  Qc7 {[%clk 0:01:15]} 27. Nb6 {[%clk 0:00:35]}  h5 {[%clk 0:01:04]} 28. Be3 {[%clk 0:00:30]}  Rxd1 {[%clk 0:01:01]} 29. Rxd1 {[%clk 0:00:30]}  Be5 {[%clk 0:00:48]} 30. Nc4 {[%clk 0:00:27]}  Bc3 {[%clk 0:00:48]} 31. Nd6 {[%clk 0:00:26]}  Rb8 {[%clk 0:00:45]} 32. Rc1 {[%clk 0:00:24]}  Bb2 {[%clk 0:00:36]} 33. Rc2 {[%clk 0:00:23]}  Be5 {[%clk 0:00:36]} 34. Nxb7 {[%clk 0:00:23]}  Rxb7 {[%clk 0:00:35]} 35. c6 {[%clk 0:00:22]}  Rb3 {[%clk 0:00:36]} 36. f4 {[%clk 0:00:20]}  Bc3 {[%clk 0:00:30]} 37. Qc1 {[%clk 0:00:11]}  Qxc6 {[%clk 0:00:29]} 38. Bd4 {[%clk 0:00:10]}  Nxe4 {[%clk 0:00:26]} 39. Bf3 {[%clk 0:00:11]}  Bxd4 {[%clk 0:00:20]} 40. Rxc6 {[%clk 0:00:07]}  Nf2+ {[%clk 0:00:21]} 41. Kg1 {[%clk 0:00:07]}  Nd3+ {[%clk 0:00:21]} 42. Kf1 {[%clk 0:00:08]}  Nxc1 {[%clk 0:00:21]} 43. Rxc1 {[%clk 0:00:07]}  g6 {[%clk 0:00:20]} 44. f5 {[%clk 0:00:06]}  exf5 {[%clk 0:00:20]} 45. Rc7 {[%clk 0:00:06]}  Rb2 {[%clk 0:00:20]} 46. Bd5 {[%clk 0:00:06]}  Rf2+ {[%clk 0:00:19]} 47. Ke1 {[%clk 0:00:06]}  Kg7 {[%clk 0:00:19]} 48. Rxf7+ {[%clk 0:00:06]}  Kh6 {[%clk 0:00:20]} 49. h3 {[%clk 0:00:05]}  h4 {[%clk 0:00:20]} 50. Rb7 {[%clk 0:00:05]}  Kg5 {[%clk 0:00:17]} 51. Rb4 {[%clk 0:00:05]}  Be3 {[%clk 0:00:16]} 52. Rb3 {[%clk 0:00:05]}  Bc5 {[%clk 0:00:15]} 53. Rc3 {[%clk 0:00:05]}  Bd4 {[%clk 0:00:14]} 54. Rd3 {[%clk 0:00:05]}  Rf4 {[%clk 0:00:15]} 55. Bf3 {[%clk 0:00:05]}  a5 {[%clk 0:00:15]} 56. Ra3 {[%clk 0:00:05]}  Bc5 {[%clk 0:00:16]} 57. Ra4 {[%clk 0:00:05]}  Rxa4 {[%clk 0:00:15]} 0-1


[Site "https://www.chess.com"]

[Event "Titled Tuesday Blitz March 28 Early 2023"]
[White "Gukesh D"]
[Black "Aveskulov, Valeriy"]
[WhiteFideId "46616543"]
[BlackFideId "14109743"]
[WhiteElo "2612"]
[BlackElo "2552"]
[Result "0-1"]
[Round "09"]
[TimeControl "180+2"]
[Date "2023.03.28"]
[WhiteClock "0:00:05"]
[BlackClock "0:00:03"]

1. e4 {[%clk 0:03:00]}  e6 {[%clk 0:02:58]} 2. d4 {[%clk 0:03:00]}  d5 {[%clk 0:02:58]} 3. Nc3 {[%clk 0:03:01]}  Nf6 {[%clk 0:02:59]} 4. e5 {[%clk 0:03:01]}  Nfd7 {[%clk 0:02:59]} 5. f4 {[%clk 0:03:01]}  c5 {[%clk 0:02:59]} 6. Nf3 {[%clk 0:03:02]}  Nc6 {[%clk 0:03:00]} 7. Be3 {[%clk 0:03:03]}  a6 {[%clk 0:02:56]} 8. Qd2 {[%clk 0:03:00]}  b5 {[%clk 0:02:56]} 9. Bd3 {[%clk 0:03:01]}  Qb6 {[%clk 0:02:53]} 10. dxc5 {[%clk 0:02:47]}  Bxc5 {[%clk 0:02:50]} 11. Bxc5 {[%clk 0:02:47]}  Nxc5 {[%clk 0:02:48]} 12. Qf2 {[%clk 0:02:44]}  b4 {[%clk 0:02:41]} 13. Ne2 {[%clk 0:02:44]}  a5 {[%clk 0:02:34]} 14. O-O {[%clk 0:02:41]}  Ba6 {[%clk 0:02:24]} 15. f5 {[%clk 0:02:39]}  exf5 {[%clk 0:02:12]} 16. Nf4 {[%clk 0:02:38]}  Ne7 {[%clk 0:02:07]} 17. Rac1 {[%clk 0:02:01]}  O-O {[%clk 0:01:42]} 18. c4 {[%clk 0:02:00]}  d4 {[%clk 0:01:34]} 19. Rfd1 {[%clk 0:01:54]}  Rad8 {[%clk 0:01:30]} 20. Bb1 {[%clk 0:01:48]}  Ne4 {[%clk 0:01:23]} 21. Bxe4 {[%clk 0:01:48]}  fxe4 {[%clk 0:01:24]} 22. Nxd4 {[%clk 0:01:48]}  Qc5 {[%clk 0:01:21]} 23. e6 {[%clk 0:01:21]}  Qe5 {[%clk 0:01:13]} 24. Nd5 {[%clk 0:00:54]}  Nxd5 {[%clk 0:01:05]} 25. Nc6 {[%clk 0:00:54]}  Qg5 {[%clk 0:00:38]} 26. Nxd8 {[%clk 0:00:44]}  Nf4 {[%clk 0:00:32]} 27. exf7+ {[%clk 0:00:39]}  Kh8 {[%clk 0:00:29]} 28. Kh1 {[%clk 0:00:34]}  e3 {[%clk 0:00:19]} 29. Qg3 {[%clk 0:00:33]}  Qxg3 {[%clk 0:00:17]} 30. hxg3 {[%clk 0:00:34]}  e2 {[%clk 0:00:15]} 31. Ne6 {[%clk 0:00:30]}  Nxe6 {[%clk 0:00:14]} 32. Re1 {[%clk 0:00:16]}  Nd4 {[%clk 0:00:14]} 33. Kh2 {[%clk 0:00:12]}  h5 {[%clk 0:00:13]} 34. c5 {[%clk 0:00:07]}  Rxf7 {[%clk 0:00:12]} 35. c6 {[%clk 0:00:08]}  Rc7 {[%clk 0:00:07]} 36. Rc5 {[%clk 0:00:08]}  g6 {[%clk 0:00:06]} 37. Rd5 {[%clk 0:00:07]}  Nxc6 {[%clk 0:00:04]} 38. Rd6 {[%clk 0:00:07]}  Kg7 {[%clk 0:00:04]} 39. Rc1 {[%clk 0:00:07]}  Bb5 {[%clk 0:00:04]} 40. b3 {[%clk 0:00:07]}  Re7 {[%clk 0:00:04]} 41. Re1 {[%clk 0:00:07]}  Ne5 {[%clk 0:00:04]} 42. Rd2 {[%clk 0:00:04]}  Ng4+ {[%clk 0:00:04]} 43. Kg1 {[%clk 0:00:05]}  Kf6 {[%clk 0:00:03]} 44. Rd6+ {[%clk 0:00:04]}  Re6 {[%clk 0:00:03]} 45. Rb6 {[%clk 0:00:05]}  Rxb6 {[%clk 0:00:03]} 0-1


[Site "https://www.chess.com"]

[Event "Titled Tuesday Blitz March 28 Early 2023"]
[White "wqws"]
[Black "Vasquez Schroeder, Rodrigo"]
[BlackFideId "3400042"]
[WhiteElo "2696"]
[BlackElo "2600"]
[Result "0-1"]
[Round "09"]
[TimeControl "180+2"]
[Date "2023.03.28"]
[WhiteClock "0:00:10"]
[BlackClock "0:01:12"]

1. e4 {[%clk 0:03:00]}  c5 {[%clk 0:02:59]} 2. Nf3 {[%clk 0:03:00]}  d6 {[%clk 0:02:59]} 3. d4 {[%clk 0:02:59]}  cxd4 {[%clk 0:03:00]} 4. Nxd4 {[%clk 0:03:00]}  Nf6 {[%clk 0:03:00]} 5. Nc3 {[%clk 0:03:01]}  a6 {[%clk 0:03:01]} 6. f3 {[%clk 0:03:01]}  e6 {[%clk 0:03:00]} 7. g4 {[%clk 0:03:00]}  h6 {[%clk 0:02:55]} 8. Be3 {[%clk 0:03:00]}  b5 {[%clk 0:02:55]} 9. Qd2 {[%clk 0:02:59]}  b4 {[%clk 0:02:51]} 10. Nce2 {[%clk 0:02:59]}  Nbd7 {[%clk 0:02:49]} 11. Ng3 {[%clk 0:02:56]}  d5 {[%clk 0:02:47]} 12. O-O-O {[%clk 0:02:30]}  Bb7 {[%clk 0:02:42]} 13. h4 {[%clk 0:02:26]}  Qc7 {[%clk 0:02:37]} 14. Rg1 {[%clk 0:02:19]}  dxe4 {[%clk 0:02:37]} 15. g5 {[%clk 0:02:12]}  hxg5 {[%clk 0:02:37]} 16. hxg5 {[%clk 0:02:13]}  Nd5 {[%clk 0:02:36]} 17. Nxe4 {[%clk 0:02:13]}  g6 {[%clk 0:02:30]} 18. Kb1 {[%clk 0:02:03]}  Nxe3 {[%clk 0:02:16]} 19. Qxe3 {[%clk 0:02:03]}  O-O-O {[%clk 0:02:17]} 20. Nb3 {[%clk 0:01:54]}  Be7 {[%clk 0:02:15]} 21. Qa7 {[%clk 0:01:37]}  Bxe4 {[%clk 0:01:56]} 22. Bxa6+ {[%clk 0:01:20]}  Bb7 {[%clk 0:01:54]} 23. Na5 {[%clk 0:01:18]}  Nc5 {[%clk 0:01:37]} 24. Qa8+ {[%clk 0:00:48]}  Qb8 {[%clk 0:01:36]} 25. Bxb7+ {[%clk 0:00:45]}  Nxb7 {[%clk 0:01:36]} 26. Qxb8+ {[%clk 0:00:43]}  Kxb8 {[%clk 0:01:36]} 27. Nc6+ {[%clk 0:00:42]}  Kc7 {[%clk 0:01:36]} 28. Nxd8 {[%clk 0:00:40]}  Nxd8 {[%clk 0:01:34]} 29. f4 {[%clk 0:00:37]}  Nc6 {[%clk 0:01:34]} 30. Rh1 {[%clk 0:00:37]}  Rxh1 {[%clk 0:01:31]} 31. Rxh1 {[%clk 0:00:38]}  Bd6 {[%clk 0:01:32]} 32. Rh7 {[%clk 0:00:34]}  Nd8 {[%clk 0:01:32]} 33. Rh4 {[%clk 0:00:33]}  Kc6 {[%clk 0:01:32]} 34. c4 {[%clk 0:00:32]}  bxc3 {[%clk 0:01:32]} 35. bxc3 {[%clk 0:00:33]}  Kd5 {[%clk 0:01:32]} 36. Kc2 {[%clk 0:00:32]}  Ke4 {[%clk 0:01:30]} 37. Rh8 {[%clk 0:00:32]}  Nc6 {[%clk 0:01:29]} 38. Rc8 {[%clk 0:00:32]}  Kd5 {[%clk 0:01:28]} 39. c4+ {[%clk 0:00:26]}  Kc5 {[%clk 0:01:28]} 40. a4 {[%clk 0:00:20]}  Bxf4 {[%clk 0:01:26]} 41. a5 {[%clk 0:00:20]}  Bxg5 {[%clk 0:01:23]} 42. a6 {[%clk 0:00:20]}  Kb6 {[%clk 0:01:23]} 43. c5+ {[%clk 0:00:19]}  Kb5 {[%clk 0:01:21]} 44. Rc7 {[%clk 0:00:16]}  Nb4+ {[%clk 0:01:17]} 45. Kb3 {[%clk 0:00:13]}  Nxa6 {[%clk 0:01:17]} 46. Rxf7 {[%clk 0:00:13]}  Nxc5+ {[%clk 0:01:18]} 47. Kc3 {[%clk 0:00:14]}  Bf6+ {[%clk 0:01:17]} 48. Kd2 {[%clk 0:00:12]}  g5 {[%clk 0:01:14]} 49. Ke3 {[%clk 0:00:11]}  Be5 {[%clk 0:01:15]} 50. Rf1 {[%clk 0:00:09]}  Bf4+ {[%clk 0:01:14]} 51. Kf3 {[%clk 0:00:08]}  Kc6 {[%clk 0:01:14]} 52. Re1 {[%clk 0:00:08]}  e5 {[%clk 0:01:14]} 53. Kg4 {[%clk 0:00:07]}  Kd5 {[%clk 0:01:12]} 54. Kf5 {[%clk 0:00:07]}  e4 {[%clk 0:01:10]} 55. Re2 {[%clk 0:00:08]}  e3 {[%clk 0:01:10]} 56. Kg4 {[%clk 0:00:08]}  Ne6 {[%clk 0:01:09]} 57. Ra2 {[%clk 0:00:07]}  Nd4 {[%clk 0:01:09]} 58. Ra1 {[%clk 0:00:06]}  Ke4 {[%clk 0:01:09]} 59. Kh3 {[%clk 0:00:07]}  e2 {[%clk 0:01:10]} 60. Kg2 {[%clk 0:00:07]}  Bd2 {[%clk 0:01:10]} 61. Kf2 {[%clk 0:00:08]}  e1=Q+ {[%clk 0:01:10]} 62. Rxe1+ {[%clk 0:00:08]}  Bxe1+ {[%clk 0:01:11]} 63. Kxe1 {[%clk 0:00:09]}  Kf3 {[%clk 0:01:11]} 64. Kf1 {[%clk 0:00:09]}  Ne2 {[%clk 0:01:11]} 65. Ke1 {[%clk 0:00:09]}  g4 {[%clk 0:01:12]} 66. Kf1 {[%clk 0:00:10]} 0-1


[Site "https://www.chess.com"]

[Event "Titled Tuesday Blitz March 28 Early 2023"]
[White "Andreikin, Dmitry"]
[Black "Bolourchifard, Farzad"]
[WhiteFideId "4158814"]
[BlackFideId "12510084"]
[WhiteElo "2736"]
[BlackElo "2317"]
[Result "1-0"]
[Round "09"]
[TimeControl "180+2"]
[Date "2023.03.28"]
[WhiteClock "0:00:10"]
[BlackClock "0:00:02"]

1. Nf3 {[%clk 0:03:00]}  d5 {[%clk 0:02:59]} 2. g3 {[%clk 0:02:59]}  Nf6 {[%clk 0:03:00]} 3. Bg2 {[%clk 0:02:59]}  Bf5 {[%clk 0:02:52]} 4. c4 {[%clk 0:02:54]}  c6 {[%clk 0:02:52]} 5. O-O {[%clk 0:02:54]}  e6 {[%clk 0:02:52]} 6. cxd5 {[%clk 0:02:49]}  exd5 {[%clk 0:02:52]} 7. d3 {[%clk 0:02:49]}  Be7 {[%clk 0:02:48]} 8. Qb3 {[%clk 0:02:45]}  Qb6 {[%clk 0:02:47]} 9. Qc2 {[%clk 0:02:45]}  O-O {[%clk 0:02:45]} 10. Be3 {[%clk 0:02:45]}  Qa5 {[%clk 0:02:31]} 11. Nbd2 {[%clk 0:02:41]}  Nbd7 {[%clk 0:02:24]} 12. a3 {[%clk 0:02:41]}  Rfe8 {[%clk 0:02:19]} 13. b4 {[%clk 0:02:40]}  Qd8 {[%clk 0:02:18]} 14. Rab1 {[%clk 0:02:28]}  a6 {[%clk 0:02:11]} 15. Nb3 {[%clk 0:02:27]}  Bd6 {[%clk 0:01:53]} 16. Nfd4 {[%clk 0:02:01]}  Bg6 {[%clk 0:01:53]} 17. Qd2 {[%clk 0:02:01]}  Bc7 {[%clk 0:01:22]} 18. Bf4 {[%clk 0:01:55]}  Nf8 {[%clk 0:01:19]} 19. Nc5 {[%clk 0:01:50]}  Bxf4 {[%clk 0:01:03]} 20. Qxf4 {[%clk 0:01:51]}  Re7 {[%clk 0:01:02]} 21. Bh3 {[%clk 0:01:39]}  Qb8 {[%clk 0:00:41]} 22. Qxb8 {[%clk 0:01:31]}  Rxb8 {[%clk 0:00:42]} 23. Rfc1 {[%clk 0:01:28]}  N6d7 {[%clk 0:00:42]} 24. Nxa6 {[%clk 0:01:14]}  bxa6 {[%clk 0:00:43]} 25. Nxc6 {[%clk 0:01:12]}  Ree8 {[%clk 0:00:41]} 26. Nxb8 {[%clk 0:01:10]}  Rxb8 {[%clk 0:00:42]} 27. Rc6 {[%clk 0:01:02]}  Nb6 {[%clk 0:00:41]} 28. b5 {[%clk 0:00:54]}  a5 {[%clk 0:00:38]} 29. Rbc1 {[%clk 0:00:51]}  f6 {[%clk 0:00:36]} 30. Rd6 {[%clk 0:00:47]}  Be8 {[%clk 0:00:34]} 31. Rc5 {[%clk 0:00:40]}  Nfd7 {[%clk 0:00:28]} 32. Rcc6 {[%clk 0:00:28]}  Kf8 {[%clk 0:00:17]} 33. f4 {[%clk 0:00:28]}  Ke7 {[%clk 0:00:17]} 34. Kf2 {[%clk 0:00:29]}  g6 {[%clk 0:00:08]} 35. Bxd7 {[%clk 0:00:20]}  Nxd7 {[%clk 0:00:08]} 36. Re6+ {[%clk 0:00:20]}  Kf8 {[%clk 0:00:07]} 37. a4 {[%clk 0:00:20]}  Kf7 {[%clk 0:00:04]} 38. Ke3 {[%clk 0:00:19]}  Nf8 {[%clk 0:00:05]} 39. Rxf6+ {[%clk 0:00:19]}  Ke7 {[%clk 0:00:05]} 40. Ra6 {[%clk 0:00:18]}  Bd7 {[%clk 0:00:04]} 41. Kd4 {[%clk 0:00:16]}  Ne6+ {[%clk 0:00:04]} 42. Ke5 {[%clk 0:00:14]}  Nc5 {[%clk 0:00:03]} 43. Ra7 {[%clk 0:00:13]}  Nxa4 {[%clk 0:00:02]} 44. Re6+ {[%clk 0:00:11]}  Kd8 {[%clk 0:00:01]} 45. Rd6 {[%clk 0:00:11]}  Nb6 {[%clk 0:00:01]} 46. Rxa5 {[%clk 0:00:10]}  Ke7 {[%clk 0:00:02]} 47. Ra7 {[%clk 0:00:10]} 1-0


[Site "https://www.chess.com"]

[Event "Titled Tuesday Blitz March 28 Early 2023"]
[White "Wagner, Dennis"]
[Black "Sadhwani, Raunak"]
[WhiteFideId "24650684"]
[BlackFideId "35093487"]
[WhiteElo "2470"]
[BlackElo "2631"]
[Result "0-1"]
[Round "09"]
[TimeControl "180+2"]
[Date "2023.03.28"]
[WhiteClock "0:00:13"]
[BlackClock "0:01:45"]

1. d4 {[%clk 0:03:00]}  g6 {[%clk 0:03:00]} 2. c4 {[%clk 0:02:59]}  Bg7 {[%clk 0:03:01]} 3. e4 {[%clk 0:02:59]}  d6 {[%clk 0:02:59]} 4. Nc3 {[%clk 0:02:59]}  Nc6 {[%clk 0:02:54]} 5. d5 {[%clk 0:02:57]}  Ne5 {[%clk 0:02:54]} 6. h3 {[%clk 0:02:54]}  Nf6 {[%clk 0:02:53]} 7. f4 {[%clk 0:02:46]}  Ned7 {[%clk 0:02:53]} 8. Be2 {[%clk 0:02:44]}  O-O {[%clk 0:02:53]} 9. Nf3 {[%clk 0:02:34]}  e6 {[%clk 0:02:50]} 10. dxe6 {[%clk 0:02:30]}  fxe6 {[%clk 0:02:51]} 11. O-O {[%clk 0:02:29]}  Qe7 {[%clk 0:02:43]} 12. Be3 {[%clk 0:02:19]}  Nh5 {[%clk 0:02:43]} 13. Ng5 {[%clk 0:01:47]}  Ng3 {[%clk 0:02:33]} 14. Rf2 {[%clk 0:01:47]}  h6 {[%clk 0:02:17]} 15. Nf3 {[%clk 0:01:37]}  Bxc3 {[%clk 0:02:17]} 16. bxc3 {[%clk 0:01:36]}  Nxe4 {[%clk 0:02:18]} 17. Rf1 {[%clk 0:01:01]}  Nxc3 {[%clk 0:02:17]} 18. Qc2 {[%clk 0:01:01]}  Nxe2+ {[%clk 0:02:18]} 19. Qxe2 {[%clk 0:01:02]}  Nf6 {[%clk 0:02:16]} 20. Rae1 {[%clk 0:01:01]}  Kh7 {[%clk 0:02:15]} 21. Qf2 {[%clk 0:00:54]}  Nh5 {[%clk 0:02:01]} 22. g4 {[%clk 0:00:24]}  Nxf4 {[%clk 0:01:56]} 23. Bxf4 {[%clk 0:00:24]}  Rxf4 {[%clk 0:01:56]} 24. Qe3 {[%clk 0:00:24]}  Rf8 {[%clk 0:01:49]} 25. Nd2 {[%clk 0:00:19]}  Bd7 {[%clk 0:01:48]} 26. Ne4 {[%clk 0:00:16]}  Bc6 {[%clk 0:01:48]} 27. Ng3 {[%clk 0:00:14]}  e5 {[%clk 0:01:46]} 28. h4 {[%clk 0:00:13]}  Qxh4 {[%clk 0:01:45]} 0-1


[Site "https://www.chess.com"]